Cogmind - Beta 16 @@@ ROGUE MODE // 2026.02.04 @ 00:34:29 Player: FISH Result: Destroyed by L-31 Rogue with Katana Performance ------------- Evolutions (1) 500 Regions Visited (3) 600 Robots Destroyed (36) 180 Value Destroyed (779) 779 Prototype IDs (3) 60 Alien Tech Used (0) 0 Bonus (210) 210 TOTAL SCORE: 2329 Bonus ------- Follower Combat Kills 210 Cogmind --------- Core Integrity 0/400 Matter 300/300 Energy 47/100 System Corruption 1% Temperature Cool (9) Movement Core (100) Ox1 Location -9/Storage Parts ------- > --- POWER (1) -------- (None) > --- PROPULSION (3) --- (None) > --- UTILITY (3) ------ Small Storage Unit Signal Interpreter > --- WEAPON (2) ------- (None) > --- INVENTORY (8) ---- Flight Unit Cooling System Medium Storage Unit Weight Redist. System Sensor Array Improved Medium Laser Grenade Launcher Peak State ------------ > --- POWER ------------ Light Ion Engine > --- PROPULSION ------- Flight Unit Flight Unit Improved Flight Unit > --- UTILITY ---------- Small Storage Unit Weight Redist. System Seismic Detector > --- WEAPON ----------- Improved Assault Rifle Improved Assault Rifle > --- INVENTORY -------- Cooling System Medium Storage Unit Sensor Array Signal Interpreter Light Armor Plating Light EM Pulse Cannon Autogun Grenade Launcher [Rating: 17] Favorites ----------- Power Light Ion Engine Engine Light Ion Engine Propulsion Flight Unit Flight Unit Flight Unit Utility Small Storage Unit Device Weight Redist. System Storage Small Storage Unit Processor Signal Interpreter Protection Light Armor Plating Weapon Improved Assault Rifle Energy Gun Small Laser Energy Cannon Light EM Pulse Cannon Ballistic Gun Improved Assault Rifle Launcher Grenade Launcher Build | -11 -10 -9 -9 ------- Run | Yrd Mat Mat Sto Slots Evolved 2 | . . 2 . Power . | . . . . Propulsion 1 | . . 1 . Utility 1 | . . 1 . Weapon . | . . . . Parts Attached 27 | 3 1 14 9 Power 2 | . . 2 . Engine 2 | . . 2 . Core . | . . . . Reactor . | . . . . Propulsion 6 | . . 3 3 Treads . | . . . . Leg . | . . . . Wheel . | . . . . Hover . | . . . . Flight 6 | . . 3 3 Utility 8 | 1 1 3 3 Device 5 | 1 . 3 1 Storage 1 | . 1 . . Processor 1 | . . . 1 Hackware . | . . . . Protection 1 | . . . 1 Artifact . | . . . . Weapon 11 | 2 . 6 3 Energy Gun 4 | 2 . 1 1 Energy Cannon 1 | . . 1 . Ballistic Gun 5 | . . 3 2 Ballistic Cannon . | . . . . Launcher 1 | . . 1 . Special Weapon . | . . . . Impact Weapon . | . . . . Slashing Weapon . | . . . . Piercing Weapon . | . . . . Special Melee Weapon . | . . . . Unidentified Prototypes 3 | . . 2 1 Parts Lost 12 | . . 3 9 Power 2 | . . 1 1 Propulsion 4 | . . 2 2 Utility 2 | . . . 2 Weapon 4 | . . . 4 Highest Loss Streak 3 | . . 2 3 To Critical Strikes . | . . . . Average Backups 6 | 3 4 7 6 Power . | 1 1 . . Propulsion . | . . . . Utility 4 | . 1 4 4 Weapon 2 | 1 1 2 1 Tool/Special . | . . . . Unused Backups 6 | . 1 3 2 Power 1 | . 1 . . Propulsion . | . . . . Utility 2 | . . . 2 Weapon 3 | . . 3 . Tool/Special . | . . . . Average Slot Usage (%) 67 | . 38 73 68 Engine 4 | . . 6 3 Flight 14 | . . 20 12 Device 11 | . 9 14 9 Storage 9 | . 2 11 11 Processor 3 | . . . 9 Energy Gun 6 | . 26 6 . Energy Cannon 1 | . . 2 . Ballistic Gun 14 | . . 11 21 Peak Build Rating 17 | 3 3 17 16 Average Rating 9 | 1 2 11 10 On Entrance 5 | . 3 2 16 Avg Prop Armor Cover (%) 6 | . . 6 . Naked Turns . | . . . . Heaviest Build 21 | 3 7 19 21 Greatest Support 19 | 3 3 19 14 Greatest Overweight (x) 6 | . 2 3 6 Average Overweight (x) . | . . . . Largest Inventory Capacity 8 | 5 8 8 8 Average Capacity 7 | 5 5 8 8 Most Carried 8 | 5 5 8 8 Average Carried 6 | 3 4 7 6 Final Capacity 8 | 5 8 8 8 Final Carried 8 | 4 5 8 7 Class Distribution -------------------- 64% | Mutant 31% | Scavenger-Mutant 3% | Commander-Mutant Dominant Class ---------------- Mutant | -10/Materials Mutant | -9/Materials Scavenger-Mutant | -9/Storage Resources | -11 -10 -9 -9 ----------- Run | Yrd Mat Mat Sto Matter Collected 1024 | 230 . 288 506 Remotely . | . . . . Salvage Created 1288 | 149 . 471 668 Parts 85 | 10 . 26 49 Haulers Intercepted 3 | . . 2 1 Recyclers Shooed 3 | 1 . . 2 Parts Field Recycled . | . . . . Retrieved Matter . | . . . . Parts Self-Destructed . | . . . . Prevented . | . . . . Parts Restored . | . . . . Kills | -11 -10 -9 -9 ------- Run | Yrd Mat Mat Sto Combat Hostiles Destroyed 22 | . . 8 14 Guns 18 | . . 4 14 AOE 4 | . . 4 . Classes Destroyed 8 | 2 . 6 . Worker 1 | . . 1 . Tunneler 4 | 3 . 1 . Hauler 3 | . . 2 1 Recycler 4 | 1 . 2 1 Watcher 2 | . . 1 1 Swarmer 8 | . . 4 4 Grunt 8 | . . 2 6 Sentry 6 | . . 2 4 Best Kill Streak 6 | 2 . 6 6 Combat Bots Only 6 | . . 4 6 Max Kills in Single Turn 3 | 1 . 3 1 Gunslinging . | . . . . Exploded 2 | . . 2 . Melee . | . . . . Uniques/NPCs Destroyed . | . . . . Combat | -11 -10 -9 -9 -------- Run | Yrd Mat Mat Sto Hostile Shots Fired 170 | . 34 47 89 Missed 51 | . 16 17 18 Hits 119 | . 18 30 71 Melee 3 | . . . 3 Projectile 116 | . 18 30 68 Critical Strikes 3 | . . . 3 Damage Taken 1542 | . 224 419 899 Core 499 | . 96 155 248 Absorbed by Shields . | . . . . Regen/Repaired (Parts) 111 | . . 63 48 Core Remaining (%) 80 | 100 61 . . Volleys Fired 90 | 5 2 35 48 Largest 2 | 2 2 2 2 Hottest 80 | 80 80 80 46 Shots Fired 177 | 10 4 67 96 Gun 167 | 10 4 57 96 Cannon 7 | . . 7 . Launcher 3 | . . 3 . Special . | . . . . Kinetic 117 | . . 21 96 Thermal 50 | 10 4 36 . Explosive 3 | . . 3 . Electromagnetic 7 | . . 7 . Robot Hit Streak 23 | 8 10 18 23 Robot Miss Streak 5 | 1 2 5 3 Penetration Max . | . . . . Secondary Targets 2 | . . 1 1 Max Gunslinging Chain 1 | . . 1 1 Shots Hit Robots 119 | 8 2 39 70 Core Hits 56 | 5 1 23 27 Critical Kills 1 | . . . 1 Critical Parts Destroyed 1 | . . . 1 Critical Strikes 2 | . . . 2 Destroy 2 | . . . 2 Melee Attacks . | . . . . Impact . | . . . . Slashing . | . . . . Piercing . | . . . . Sneak Attacks . | . . . . Combat Hostiles . | . . . . Follow-up Attacks . | . . . . Damage Inflicted 2029 | 87 36 838 1068 Guns 1601 | 87 23 427 1064 Cannons 97 | . . 97 . Explosions 314 | . . 314 . Melee . | . . . . Ramming 17 | . 13 . 4 Kinetic 1231 | . . 167 1064 Thermal 396 | 87 23 286 . Explosive 288 | . . 288 . Electromagnetic 97 | . . 97 . Impact . | . . . . Slashing . | . . . . Piercing . | . . . . Highest Corruption 1 | . . . 1 Average Corruption 1 | . . . 1 Corruption Purged . | . . . . Corruption Blocked . | . . . . Overload Shots . | . . . . Overflow Damage 12 | . . 12 . Projectiles 7 | . . 7 . Explosions 5 | . . 5 . Melee . | . . . . Knockbacks . | . . . . Impact . | . . . . Kinetic . | . . . . Secondary . | . . . . Self-Inflicted Damage 31 | . 6 24 1 Shots 1 | . . 1 . Rammed 7 | . 3 . 4 Targets Rammed 7 | . 3 . 4 Kicked . | . . . . Crushed . | . . . . Highest Temperature 128 | 34 3 128 20 Average Temperature 26 | 14 2 37 3 Received Heat Transfer 570 | . 120 105 345 Siege Activations . | . . . . Martial Activations . | . . . . Shielding Activations . | . . . . Robots Disrupted . | . . . . Combat Hostiles . | . . . . Robots Corrupted . | . . . . Combat Hostiles . | . . . . Parts Fried . | . . . . Impact Corruptions . | . . . . Robots Melted . | . . . . Combat Hostiles . | . . . . Parts Melted 2 | 1 . 1 . Heat Transferred 900 | 200 50 650 . Parts Sabotaged . | . . . . Parts Stolen . | . . . . Parts Stripped . | . . . . Power Chain Reactions 1 | . . 1 . Alert | -11 -10 -9 -9 ------- Run | Yrd Mat Mat Sto Maximum Alert Level 1 | . . 1 1 Low Security (%) 45 | 100 100 50 19 Level 1 54 | . . 49 80 Level 2 . | . . . . Level 3 . | . . . . Level 4 . | . . . . Level 5 . | . . . . High Security . | . . . . Max Security . | . . . . Peak Influence 391 | 10 185 380 391 Initial 156 | . 6 73 156 Average 209 | 3 66 218 263 Influence Increases 1596 | 20 225 631 720 Destroy 0b10 Robot/C 640 | . . 160 480 Destroy 0b10 Robot/NC 75 | 20 . 35 20 Destroy Leader 140 | . . 36 104 Allied During Kill 56 | . . . 56 Successful Hack 38 | . . 9 29 Select Force Hacks 30 | . . 30 . Disable Machine 60 | . . 45 15 Destroy Structure 17 | . . 16 1 Partial Spotted 75 | . . 75 . Lose Combat Pursuer 465 | . 225 225 15 Influence Decreases 1308 | 10 60 434 804 Entered New Map 322 | . 4 102 216 Time Decay 646 | 10 56 302 278 Lost Part 120 | . . 30 90 Lost Ally 220 | . . . 220 Squads Dispatched 10 | . 2 3 5 Investigation 4 | . 1 2 1 Extermination . | . . . . Reinforcement 2 | . 1 1 . Assault 2 | . . . 2 Garrison 2 | . . . 2 Intercept . | . . . . Searches Triggered . | . . . . Construction Impeded . | . . . . Haulers Reinforced . | . . . . Active Scanning Responses . | . . . . Cargo Convoy Interrupts . | . . . . Stealth | -11 -10 -9 -9 --------- Run | Yrd Mat Mat Sto Distress Signals 5 | . . 3 2 Communications Jammed . | . . . . Distress Signals . | . . . . Times Spotted 79 | . 21 24 34 Peak Tracking Total 9 | . 9 6 7 Tactical Retreats 15 | . 3 9 3 ECM-based Alert Blocks 5 | . . . 5 Traps | -11 -10 -9 -9 ------- Run | Yrd Mat Mat Sto Traps Triggered 4 | . 2 1 1 Indirectly . | . . . . Trap Hack Attempts . | . . . . Triggered . | . . . . Disarmed . | . . . . Reprogrammed . | . . . . Reused . | . . . . Traps Extracted . | . . . . Installed . | . . . . Triggered . | . . . . Machines | -11 -10 -9 -9 ---------- Run | Yrd Mat Mat Sto Machines Disabled 4 | . . 3 1 Max in Single Turn 2 | . . 2 1 Machines Repaired . | . . . . Machines Dismantled . | . . . . Machines Sabotaged . | . . . . Overloaded Fab Kills . | . . . . Hacking | -11 -10 -9 -9 --------- Run | Yrd Mat Mat Sto Machines Accessed 15 | . . 5 10 Terminals 12 | . . 3 9 Fabricators . | . . . . Repair Stations 2 | . . 1 1 Recycling Units 1 | . . 1 . Scanalyzers . | . . . . Garrison Access . | . . . . Total Hacks 39 | . . 15 24 Successful 19 | . . 7 12 Failed 19 | . . 7 12 Catastrophic 5 | . . 3 2 Database Lockouts 1 | . . 1 . Manual 19 | . . 10 9 Terminals 34 | . . 12 22 Fabricators . | . . . . Repair Stations 4 | . . 2 2 Recycling Units 1 | . . 1 . Scanalyzers . | . . . . Garrison Access . | . . . . Terminal Hacks 7 | . . 2 5 Robot Analysis 2 | . . 1 1 Open Door 1 | . . . 1 Locate Traps 3 | . . . 3 Hauler Manifests 1 | . . 1 . Fabricator Hacks . | . . . . Repair Station Hacks 4 | . . 2 2 Scan Component 2 | . . 1 1 Repair 2 | . . 1 1 Recycling Unit Hacks . | . . . . Scanalyzer . | . . . . Garrison Access Hacks . | . . . . Unauthorized Hacks 8 | . . 3 5 Terminals 7 | . . 2 5 Botnet 4 | . . 1 3 Skim 3 | . . 1 2 Fabricators . | . . . . Repair Stations . | . . . . Recycling Units 1 | . . 1 . Tunnel 1 | . . 1 . Scanalyzers . | . . . . Garrison Access . | . . . . Data Cores Recovered . | . . . . Used . | . . . . Hacking Detections 13 | . . 4 9 Full Trace Events 2 | . . 1 1 Feedback Events . | . . . . Feedback Blocked . | . . . . Robot Schematics Acquired . | . . . . Robots Built . | . . . . Authchips . | . . . . Time . | . . . . Total Robot Build Rating . | . . . . Part Schematics Acquired . | . . . . Parts Built . | . . . . Authchips . | . . . . Time . | . . . . Total Part Build Rating . | . . . . Part Studies Acquired . | . . . . Parts Repaired 2 | . . 1 1 Time 39 | . . 13 26 Parts Recycled . | . . . . Recycled Matter . | . . . . Retrieved Matter . | . . . . Retrieved Components . | . . . . Parts Scanalyzed . | . . . . Part Schematics Acquired . | . . . . Parts Damaged . | . . . . Bothacking | -11 -10 -9 -9 ------------ Run | Yrd Mat Mat Sto Used RIF Installer . | . . . . Robots Hacked . | . . . . Non-combat . | . . . . Combat . | . . . . Robot Hacks Applied . | . . . . Relay Couplers Released . | . . . . Fabnet Peak Effective % . | . . . . Robots Rewired . | . . . . Allies Hacked . | . . . . Hacks Repelled . | . . . . Allies | -11 -10 -9 -9 -------- Run | Yrd Mat Mat Sto Total Allies 12 | . . . 12 Largest Group 10 | . . . 10 Highest-Rated Group 88 | . . . 88 Highest-Rated Ally 31 | . . . 31 Total Orders . | . . . . Ally Attacks 110 | . . . 110 Total Damage 995 | . . . 995 Kills 12 | . . . 12 Allies Corrupted . | . . . . Allies Melted . | . . . . Intel | -11 -10 -9 -9 ------- Run | Yrd Mat Mat Sto Active Infowar (turns) 620 | 2 118 264 236 Sensors 148 | . . 1 147 Seismic 437 | 2 118 263 54 ECM 35 | . . . 35 Robot Analysis Total 2 | . . 1 1 Derelict Logs Recovered . | . . . . Drone Launches . | . . . . Drone Recoveries . | . . . . Exploration | -11 -10 -9 -9 ------------- Run | Yrd Mat Mat Sto Turns Passed 1524 | 69 177 660 618 Spaces Moved 1347 | 55 248 687 357 Core 447 | 55 248 113 31 Treads . | . . . . Legs . | . . . . Wheels . | . . . . Hover . | . . . . Flight 900 | . . 574 326 Fastest Speed 34 | 50 50 34 34 Average Speed 58 | 50 56 54 68 Slowest Speed 350 | 50 150 200 350 Overloaded Moves . | . . . . Propulsion Burnouts . | . . . . Robots Hopped 10 | . . 7 3 Potential Cave-ins . | . . . . Cave-ins Triggered . | . . . . Exploration Rate (%) 37 | 3 45 52 49 Regions Visited 3 Branch Regions 1 Pre-discovered Areas 1 | . . 1 . Known Exits Taken . | . . . . Unknown Exits Taken 3 | 1 1 1 . Scrap Searched . | . . . . Spaces Dug . | . . . . Terrain Destroyed 14 | . . 14 . Melee . | . . . . Projectile . | . . . . AOE 14 | . . 14 . Terrain Rammed . | . . . . Walls Destroyed . | . . . . Machines Disabled . | . . . . Actions | -11 -10 -9 -9 --------- Run | Yrd Mat Mat Sto Total 1890 | 85 280 894 631 Wait 365 | 17 22 138 188 Move 1324 | 54 247 672 351 Hop 10 | . . 7 3 Pick Up 22 | 6 2 11 3 Fast Attach 19 | 1 1 11 6 Attach 17 | 2 1 3 11 Detach 10 | . 1 1 8 Swap 10 | . . 5 5 Drop 16 | . 1 11 4 Fire 90 | 5 2 35 48 Melee . | . . . . Ram 7 | . 3 . 4 Kick . | . . . . Crush . | . . . . Escape Stasis . | . . . . Rewire . | . . . . Trap . | . . . . Miscellaneous . | . . . . Route ------- -11/Scrapyard -10/Materials (discovered 3 exits: *Mat / [*Min x2]) -9/Materials (discovered 2 exits: *Mat / *Sto) -9/Storage (discovered 1 exit: *Mat) History --------- Turn | Location | Event 5 | -11/Scrapyard | Discovered new exit (range 15) 70 | -11/Scrapyard | Entered Materials 87 | -10/Materials | Discovered new exit (range 8) 130 | -10/Materials | Discovered new exit (range 16) 244 | -10/Materials | Discovered new exit (range 4) 247 | -10/Materials | Entered another Materials area 247 | -9/Materials | Evolved 2 slots: Propulsion x1, Utility x1 286 | -9/Materials | Repaired Sml. Laser 334 | -9/Materials | Build established: Mutant 645 | -9/Materials | Discovered new exit (range 3) 671 | -9/Materials | Discovered new exit (range 16) 715 | -9/Materials | Central database locked down 907 | -9/Materials | Entered Storage 1000 | -9/Storage | Core integrity fell below 50% 1143 | -9/Storage | Lost 3 parts (1p2w) 1199 | -9/Storage | Repaired Grenade Launcher 1214 | -9/Storage | Met a pair of Derelict thieves 1239 | -9/Storage | Garrison activated, responded to threat 1288 | -9/Storage | Core integrity fell below 20% 1310 | -9/Storage | Assisted by bots powering up and referring to "LRC-V3" 1390 | -9/Storage | Discovered new exit (range 16) 1391 | -9/Storage | Lost 7 allies 1392 | -9/Storage | Garrison activated, responded to threat 1416 | -9/Storage | Identified exit to Materials 1525 | -9/Storage | Destroyed by L-31 Rogue with Katana Last Messages --------------- 01419_ W-16 Scout destroyed. 01425_ Acquired 13 matter. 01426_ K-01 Serf collects debris. 01427_ Acquired 1 matter. 01429_ K-01 Serf collects debris. 01438_ A-02 Transporter destroyed. 01439_ K-01 Serf collects debris. 01454_ Mercenary 2h destroyed. 01461_ Mercenary 2d destroyed. 01466_ Acquired 27 matter. 01517_ Hvy. Assault Rifle destroyed. 01519_ Flight Unit destroyed. 01519_ Critical hit (Burn: +37). 01520_ Slammed into G-47 Trooper. 01522_ Slammed into L-31 Rogue. 01522_ Triggered Shock Trap. 01522_ The floor emits a surge of raw power. 01522_ System corrupted (+1). 01523_ Autogun destroyed. 01524_ ECM Suite severed. Map ----- +----------------------------------------------------+ | ??????????????????????????????????????? | | ??????????????????????????????????????? | | ??????????????????????????????????????? | | ??????????????????????????????????????? | | ??????????????????????????????????????? | | ??????????????????????????????????????? | | ??????????????????????????????????????? | | ??????????????????????????????????????? | | ??????????????????????????????????????? | | ??????????????????????????????????????? | | ??????????????????????????????????????? | | ??????????????????????????????????????? | | ??????????????????????????????????????? | | ??????????????????????????????????????? | | ??????????????????????????????????????? | | ??????????????????????????????????????? | | ??????????????????????????????????????? | | ??????????????????????????????????????? | | ##????????????????????????????????????? | | ]#????????????????????????????????????? | | ##???##"#????????????????????????????? | | !=#???#T #????????????????????????????? | | +#######+####################?????????? | | *==%= ! #?????????? | | [==%=[ "% = Yl%l < #?????????? | | %%%%=![ = l @ #?????????? | | ##+#########+#########+######?????????? | | !=*##???# ^ ## % #??????????? | | *!=T#???# """ ## """ #??????????? | | ===*#??## """^ "# """ #??????????? | | [ #??#T """ T# """ #??????????? | | #####??## "# #??????????? | | ????????# ^""" ## """ #??????????? | | ????????# """^ ## """ #??????????? | | ????????# """ #???"" #??????????? | | ????????# #???? #??????????? | | ????????##########????#####???????????? | | | | | | | | | | | | | | | | | | | | | | | | | | | +----------------------------------------------------+ Best States ------------- Heat Dissipation 28 Energy Generation 12 Energy Capacity 265 Matter Stores 300 Matter Capacity 300 Sight Range 16 Robot Scan Range 14 Terrain Scan Density 10 ECM Strength 1 Additional Mass Support 6 Armor Coverage 150 Evasion (%) 63 Item Schematics ----------------- None Robot Schematics ------------------ None Fabricated ------------ Nothing Repaired ---------- Sml. Laser | 10% | -9/Materials Grenade Launcher | 20% | -9/Storage Studied --------- None Alien Tech Used ----------------- None Achievements -------------- None Challenges ------------ None Game ------ Seed TitaniumGodProcessor Manual? 0 Play Time 00:22:10 Cumulative 178.5 hours Start 2026.02.04 @ 00:13:16 End 2026.02.04 @ 00:34:29 Sessions 1 Manual Loads 0 Difficulty Rogue Special Mode None Game No. 89 Rogue 89 Adventurer 0 Explorer 0 Win Type - Total 3 Types 3/0/0/0/0/0/0/0/0/0 Lore% 53 Gallery% 60 Achievement% 43 Wizard Run 0 Options --------- Layout 1 ASCII 0 Keyboard 1 Movement Numpad Keybinds 0 Fullscreen 1 Font 24/Smallcaps Map View 50x35 Zoom Use 0% Tactical HUD 1 Map Filters NONE Filters NONE Steam 1 RUN: 37985129-9c66-4bab-a70b-a2c871d21687